Cogmind - Beta 9.4 *** ADVENTURER MODE // 2020.01.28 @ 21:22:26 Player: JayDee Result: Destroyed by S-27 Virus with Autogun Performance ------------- Evolutions (4) 2000 Regions Visited (6) 1200 Robots Destroyed (21) 105 Value Destroyed (756) 756 Prototype IDs (2) 40 Alien Tech Used (0) 0 Bonus (0) 0 TOTAL SCORE: 4101 Bonus ------- None Cogmind --------- Core Integrity 0/850 Matter 300/300 Energy 98/100 System Corruption 7% Temperature Cool (0) Movement Core (50) Location -6/Factory Parts ------- > --- POWER (2) -------- (None) > --- PROPULSION (5) --- (None) > --- UTILITY (6) ------ (None) > --- WEAPON (2) ------- (None) > --- INVENTORY (4) ---- Matter Neutralizer Matter Neutralizer Advanced EMP Blaster Peak State ------------ > --- POWER ------------ Improved Ion Engine > --- PROPULSION ------- VTOL Module VTOL Module VTOL Module VTOL Module > --- UTILITY ---------- Improved Heat Sink Visual Processing Unit Improved Terrain Scanner Seismic Analyzer Target Analyzer Core Analyzer > --- WEAPON ----------- Matter Neutralizer Matter Neutralizer > --- INVENTORY -------- Ion Engine Assault Cannon Assault Cannon [Rating: 39] Favorites ----------- Power Light Ion Engine Engine Light Ion Engine Power Core Light Nuclear Core Propulsion Aluminum Leg Leg Aluminum Leg Wheel Compact Wheel Flight Unit VTOL Module Utility High-capacity Storage Unit Device Heat Sink Storage High-capacity Storage Unit Processor Visual Processing Unit Hackware Hacking Suite Weapon Assault Cannon Energy Gun Medium Laser Energy Cannon Matter Neutralizer Ballistic Gun Light Assault Rifle Ballistic Cannon Assault Cannon Build | -11 -10 -9 -9 -8 -7 -6 ------- Run | Scr Mat Mat Min Mat Fac Fac Slots Evolved 8 | . . 2 . 2 2 2 Power 1 | . . . . . . 1 Propulsion 3 | . . 1 . . 1 1 Utility 4 | . . 1 . 2 1 . Weapon . | . . . . . . . Parts Attached 43 | 6 2 2 . 19 11 3 Power 5 | 1 . . . 2 1 1 Engine 3 | 1 . . . 1 . 1 Core 2 | . . . . 1 1 . Reactor . | . . . . . . . Propulsion 13 | 2 . 1 . 6 2 2 Treads . | . . . . . . . Leg 6 | 2 . 1 . 3 . . Wheel 2 | . . . . . . 2 Hover . | . . . . . . . Flight 5 | . . . . 3 2 . Utility 14 | 1 2 1 . 7 3 . Device 4 | . . 1 . 3 . . Storage 4 | 1 2 . . . 1 . Processor 5 | . . . . 4 1 . Hackware 1 | . . . . . 1 . Protection . | . . . . . . . Artifact . | . . . . . . . Weapon 11 | 2 . . . 4 5 . Energy Gun 1 | 1 . . . . . . Energy Cannon 2 | . . . . . 2 . Ballistic Gun 3 | 1 . . . 2 . . Ballistic Cannon 5 | . . . . 2 3 . Launcher . | . . . . . . . Special Weapon . | . . . . . . . Impact Weapon . | . . . . . . . Slashing Weapon . | . . . . . . . Piercing Weapon . | . . . . . . . Special Melee Weapon . | . . . . . . . Unidentified Prototypes . | . . . . . . . Parts Lost 9 | . . . . 6 3 . Power 1 | . . . . 1 . . Propulsion 6 | . . . . 3 3 . Utility 1 | . . . . 1 . . Weapon 1 | . . . . 1 . . Highest Loss Streak 4 | . . . . 4 3 . Average Slot Usage (%) 85 | . 100 100 100 98 96 . Engine 7 | . 14 11 11 4 4 . Core 1 | . . . . 4 2 . Leg 20 | . 28 33 33 24 . . Flight 4 | . . . . 1 28 . Device 6 | . . 11 11 7 11 . Storage 15 | . 28 22 22 17 . . Processor 9 | . . . . 19 29 . Energy Gun 5 | . 14 11 11 1 . . Ballistic Gun 7 | . 14 11 11 6 . . Ballistic Cannon 4 | . . . . 9 11 . Naked Turns 258 | . . . . . . 258 Heaviest Build 81 | 10 70 71 71 81 31 . Greatest Support 32 | 20 20 30 30 30 20 32 Greatest Overweight (x) 5 | 3 3 2 2 5 1 . Average Overweight (x) . | . 2 2 2 1 . . Largest Inventory Capacity 20 | 6 20 20 20 20 12 4 Average Capacity 15 | 5 19 20 20 19 4 4 Most Carried 16 | 2 8 15 16 15 4 3 Average Carried 8 | 1 6 11 15 13 3 3 Final Capacity 20 | 6 20 20 20 4 4 4 Final Carried 16 | 2 8 15 16 4 3 3 Class Distribution -------------------- 42% | Hauler-Mutant 19% | Mutant 17% | Scavenger-Skirmisher 6% | Scout 5% | Hacker-Scout 4% | Hauler-Skirmisher 3% | Scavenger-Mutant Dominant Class ---------------- Hauler-Mutant | -10/Materials Hauler-Mutant | -9/Materials Hauler-Mutant | -9/Mines Scavenger-Skirmisher | -8/Materials Hacker-Scout | -7/Factory Mutant | -6/Factory Resources | -11 -10 -9 -9 -8 -7 -6 ----------- Run | Scr Mat Mat Min Mat Fac Fac Matter Collected 854 | 117 114 87 . 287 39 210 Remotely . | . . . . . . . Salvage Created 883 | . 114 30 . 511 39 189 Parts 58 | . 9 1 . 35 3 10 Haulers Intercepted . | . . . . . . . Recyclers Shooed 1 | . . . . 1 . . Parts Field Recycled . | . . . . . . . Retrieved Matter . | . . . . . . . Parts Self-Destructed . | . . . . . . . Prevented . | . . . . . . . Kills | -11 -10 -9 -9 -8 -7 -6 ------- Run | Scr Mat Mat Min Mat Fac Fac Combat Hostiles Destroyed 14 | . 2 . . 11 . 1 Melee 1 | . . . . . . 1 Guns 7 | . 2 . . 5 . . Cannons 6 | . . . . 6 . . Classes Destroyed 9 | . 2 . . 4 1 2 Builder 2 | . . . . 2 . . Recycler 1 | . . . . . . 1 Operator 1 | . . . . . 1 . Watcher 3 | . 1 1 . . 1 . Swarmer 1 | . . . . . . 1 Grunt 7 | . 2 . . 5 . . Duelist 1 | . . . . 1 . . Sentry 3 | . . . . 3 . . Hunter 2 | . . . . 2 . . Best Kill Streak 4 | . 1 1 . 4 1 1 Combat Bots Only 4 | . 1 . . 4 . 1 Max Kills in Single Turn 1 | . 1 1 . 1 1 1 Gunslinging . | . . . . . . . Exploded . | . . . . . . . Melee 1 | . . . . . . 1 Uniques/NPCs Destroyed . | . . . . . . . Combat | -11 -10 -9 -9 -8 -7 -6 -------- Run | Scr Mat Mat Min Mat Fac Fac Damage Taken 2233 | . 157 17 . 830 344 885 Core 1077 | . 49 . . 84 91 853 Absorbed by Shields . | . . . . . . . Core Remaining (%) 90 | 100 80 . 100 84 87 . Volleys Fired 60 | . 10 8 . 37 5 . Largest 2 | . 2 2 . 2 2 . Hottest 105 | . 70 70 . 88 105 . Shots Fired 118 | . 20 16 . 74 8 . Gun 71 | . 20 16 . 35 . . Cannon 47 | . . . . 39 8 . Launcher . | . . . . . . . Special . | . . . . . . . Kinetic 94 | . 10 8 . 70 6 . Thermal 24 | . 10 8 . 4 2 . Explosive . | . . . . . . . Electromagnetic . | . . . . . . . Robot Hit Streak 20 | . 20 8 . 14 3 . Robot Miss Streak 2 | . . 1 . 2 1 . Penetration Max . | . . . . . . . Secondary Targets . | . . . . . . . Shots Hit Robots 89 | . 20 12 . 54 3 . Core Hits 55 | . 7 3 . 27 3 15 Critical Hits . | . . . . . . . Critical Kills . | . . . . . . . Critical Parts Destroyed . | . . . . . . . Melee Attacks . | . . . . . . . Impact . | . . . . . . . Slashing . | . . . . . . . Piercing . | . . . . . . . Sneak Attacks . | . . . . . . . Combat Hostiles . | . . . . . . . Follow-up Attacks . | . . . . . . . Damage Inflicted 1289 | . 201 109 . 769 109 101 Guns 633 | . 201 109 . 323 . . Cannons 555 | . . . . 446 109 . Explosions . | . . . . . . . Melee . | . . . . . . . Ramming 101 | . . . . . . 101 Kinetic 939 | . 75 47 . 745 72 . Thermal 249 | . 126 62 . 24 37 . Explosive . | . . . . . . . Electromagnetic . | . . . . . . . Impact . | . . . . . . . Slashing . | . . . . . . . Piercing . | . . . . . . . Highest Corruption 7 | . . 1 1 . . 7 Average Corruption 1 | . . 1 1 . . 3 Corruption Purged . | . . . . . . . Effects 5 | . . 3 . . . 2 Message Errors 2 | . . 1 . . . 1 Energy Discharges 2 | . . 1 . . . 1 Data Loss (minor) 1 | . . 1 . . . . Overload Shots . | . . . . . . . Overflow Damage 38 | . . . . 37 1 . Projectiles 38 | . . . . 37 1 . Explosions . | . . . . . . . Melee . | . . . . . . . Knockbacks 6 | . . . . 3 . 3 Impact 3 | . . . . . . 3 Kinetic 3 | . . . . 3 . . Secondary . | . . . . . . . Self-Inflicted Damage 46 | . . . . . . 46 Shots . | . . . . . . . Rammed 30 | . . . . . . 30 Targets Rammed 30 | . . . . . . 30 Kicked . | . . . . . . . Crushed . | . . . . . . . Highest Temperature 171 | . 164 4 . 171 64 . Average Temperature 45 | . 67 3 . 48 28 . Received Heat Transfer 693 | . 96 12 . 324 150 111 Siege Activations . | . . . . . . . Robots Corrupted . | . . . . . . . Combat Hostiles . | . . . . . . . Parts Fried . | . . . . . . . Impact Corruptions . | . . . . . . . Robots Melted . | . . . . . . . Combat Hostiles . | . . . . . . . Parts Melted . | . . . . . . . Heat Transferred 666 | . 370 185 . 74 37 . Parts Sabotaged . | . . . . . . . Parts Stolen . | . . . . . . . Parts Stripped . | . . . . . . . Power Chain Reactions . | . . . . . . . Missiles Intercepted . | . . . . . . . Alert | -11 -10 -9 -9 -8 -7 -6 ------- Run | Scr Mat Mat Min Mat Fac Fac Peak Influence 283 | . 80 67 . 283 279 235 Average Influence 96 | . 50 36 . 129 163 163 Maximum Alert Level 1 | . . . . 1 1 1 Low Security (%) 87 | 100 100 100 100 78 67 84 Level 1 12 | . . . . 21 32 15 Level 2 . | . . . . . . . Level 3 . | . . . . . . . Level 4 . | . . . . . . . Level 5 . | . . . . . . . High Security . | . . . . . . . Max Security . | . . . . . . . Squads Dispatched 14 | . . 3 . 2 5 4 Investigation 7 | . . 2 . . 2 3 Extermination . | . . . . . . . Reinforcement 7 | . . 1 . 2 3 1 Assault . | . . . . . . . Garrison . | . . . . . . . Intercept . | . . . . . . . Construction Impeded . | . . . . . . . Haulers Reinforced . | . . . . . . . Stealth | -11 -10 -9 -9 -8 -7 -6 --------- Run | Scr Mat Mat Min Mat Fac Fac Distress Signals 4 | . . 1 . 1 1 1 Communications Jammed . | . . . . . . . Distress Signals . | . . . . . . . Times Spotted 94 | . 4 12 . 20 30 28 Peak Tracking Total 18 | . 2 3 . 5 12 18 Tactical Retreats 14 | . 1 5 . . 4 4 Traps | -11 -10 -9 -9 -8 -7 -6 ------- Run | Scr Mat Mat Min Mat Fac Fac Traps Triggered 3 | . 1 2 . . . . Indirectly . | . . . . . . . Trap Hack Attempts . | . . . . . . . Triggered . | . . . . . . . Disarmed . | . . . . . . . Reprogrammed 6 | . . 6 . . . . Reused 1 | . . 1 . . . . Traps Extracted . | . . . . . . . Installed . | . . . . . . . Triggered 1 | . . 1 . . . . Machines | -11 -10 -9 -9 -8 -7 -6 ---------- Run | Scr Mat Mat Min Mat Fac Fac Machines Disabled 2 | . . . . 1 1 . Max in Single Turn 1 | . . . . 1 1 . Machines Sabotaged . | . . . . . . . Garrisons Compromised . | . . . . . . . Overloaded Fab Kills . | . . . . . . . Fab Network Shutdowns . | . . . . . . . Hacking | -11 -10 -9 -9 -8 -7 -6 --------- Run | Scr Mat Mat Min Mat Fac Fac Machines Accessed 18 | . 4 4 . 1 6 3 Terminals 13 | . 4 3 . 1 2 3 Fabricators 2 | . . . . . 2 . Repair Stations . | . . . . . . . Recycling Units 1 | . . 1 . . . . Scanalyzers 2 | . . . . . 2 . Garrison Access . | . . . . . . . Total Hacks 64 | . 11 13 . 4 23 13 Successful 39 | . 8 6 . 3 14 8 Failed 24 | . 3 7 . 1 9 4 Catastrophic 3 | . . . . . 2 1 Database Lockouts 5 | . . . . . . 5 Manual 11 | . . . . . . 11 Terminals 48 | . 11 12 . 4 8 13 Fabricators 6 | . . . . . 6 . Repair Stations . | . . . . . . . Recycling Units 1 | . . 1 . . . . Scanalyzers 9 | . . . . . 9 . Garrison Access . | . . . . . . . Terminal Hacks 29 | . 8 5 . 3 5 8 Record 14 | . 3 3 . . 3 5 Robot Analysis 1 | . 1 . . . . . Prototype ID Bank 1 | . 1 . . . . . Branch Access Points 1 | . . . . 1 . . Emergency Access Points 2 | . . . . 1 1 . Terminal Index 1 | . . . . 1 . . Fabricator Index 1 | . . . . . . 1 Alert Level 2 | . 2 . . . . . Locate Traps 2 | . . 1 . . . 1 Reprogram Traps 1 | . . 1 . . . . Maintenance Status 1 | . 1 . . . . . Registered Components 1 | . . . . . 1 . Zone Layout 1 | . . . . . . 1 Fabricator Hacks 2 | . . . . . 2 . Load Schematic 1 | . . . . . 1 . Build 1 | . . . . . 1 . Repair Station Hacks . | . . . . . . . Recycling Unit Hacks 1 | . . 1 . . . . Recycle Component 1 | . . 1 . . . . Scanalyzer 7 | . . . . . 7 . Insert Component 4 | . . . . . 4 . Analyze 3 | . . . . . 3 . Garrison Access Hacks . | . . . . . . . Unauthorized Hacks . | . . . . . . . Terminals . | . . . . . . . Fabricators . | . . . . . . . Repair Stations . | . . . . . . . Recycling Units . | . . . . . . . Scanalyzers . | . . . . . . . Garrison Access . | . . . . . . . Data Cores Recovered . | . . . . . . . Used . | . . . . . . . Hacking Detections 16 | . 3 3 . 1 6 3 Full Trace Events 5 | . . 1 . . 2 2 Feedback Events . | . . . . . . . Feedback Blocked . | . . . . . . . Robot Schematics Acquired . | . . . . . . . Robots Built . | . . . . . . . Matter . | . . . . . . . Time . | . . . . . . . Total Robot Build Rating . | . . . . . . . Part Schematics Acquired 3 | . . . . . 3 . Parts Built 2 | . . . . . 2 . Matter 234 | . . . . . 234 . Time 39 | . . . . . 39 . Total Part Build Rating 14 | . . . . . 14 . Parts Repaired . | . . . . . . . Time . | . . . . . . . Parts Recycled 1 | . . 1 . . . . Recycled Matter . | . . . . . . . Retrieved Matter . | . . . . . . . Retrieved Components . | . . . . . . . Parts Scanalyzed 3 | . . . . . 3 . Part Schematics Acquired 3 | . . . . . 3 . Parts Damaged 1 | . . . . . 1 . Bothacking | -11 -10 -9 -9 -8 -7 -6 ------------ Run | Scr Mat Mat Min Mat Fac Fac Used RIF Installer . | . . . . . . . Robots Hacked . | . . . . . . . Non-combat . | . . . . . . . Combat . | . . . . . . . Robot Hacks Applied . | . . . . . . . Relay Couplers Released . | . . . . . . . Robots Rewired . | . . . . . . . Allies Hacked . | . . . . . . . Hacks Repelled . | . . . . . . . Allies | -11 -10 -9 -9 -8 -7 -6 -------- Run | Scr Mat Mat Min Mat Fac Fac Total Allies . | . . . . . . . Largest Group . | . . . . . . . Highest-Rated Group . | . . . . . . . Highest-Rated Ally . | . . . . . . . Total Orders . | . . . . . . . Ally Attacks . | . . . . . . . Total Damage . | . . . . . . . Kills . | . . . . . . . Allies Corrupted . | . . . . . . . Allies Melted . | . . . . . . . Intel | -11 -10 -9 -9 -8 -7 -6 ------- Run | Scr Mat Mat Min Mat Fac Fac Robot Analysis Total 1 | . 1 . . . . . Derelict Logs Recovered . | . . . . . . . Drone Launches . | . . . . . . . Drone Recoveries . | . . . . . . . Exploration | -11 -10 -9 -9 -8 -7 -6 ------------- Run | Scr Mat Mat Min Mat Fac Fac Turns Passed 1994 | 42 321 460 81 542 283 265 Spaces Moved 1599 | 27 137 235 45 222 475 458 Core 466 | 11 . . . . . 455 Treads . | . . . . . . . Legs 633 | 16 137 235 45 200 . . Wheels 3 | . . . . . . 3 Hover . | . . . . . . . Flight 497 | . . . . 22 475 . Fastest Speed 31 | 50 120 180 180 34 31 50 Average Speed 99 | 117 206 180 180 171 33 50 Slowest Speed 434 | 200 210 180 180 434 120 100 Overloaded Moves . | . . . . . . . Propulsion Burnouts . | . . . . . . . Robots Hopped 5 | . . . . . 5 . Cave-ins Triggered . | . . . . . . . Exploration Rate (%) 21 | 3 38 38 14 27 15 14 Regions Visited 6 Branch Regions 1 Pre-discovered Areas . | . . . . . . . Known Exits Taken . | . . . . . . . Unknown Exits Taken 6 | 1 1 1 1 1 1 . Scrap Searched 1 | . . . 1 . . . Spaces Dug . | . . . . . . . Terrain Destroyed 11 | . . . . 10 1 . Melee . | . . . . . . . Projectile 11 | . . . . 10 1 . AOE . | . . . . . . . Actions | -11 -10 -9 -9 -8 -7 -6 --------- Run | Scr Mat Mat Min Mat Fac Fac Total 1894 | 34 158 258 45 318 590 491 Wait 101 | . 3 4 . 9 85 . Move 1583 | 26 136 234 44 221 464 458 Hop 5 | . . . . . 5 . Pick Up 34 | 2 6 10 1 9 6 . Fast Attach 21 | 6 2 . . 5 5 3 Attach 22 | . . 2 . 14 6 . Detach 7 | . . . . 4 3 . Swap . | . . . . . . . Drop 31 | . 1 . . 19 11 . Fire 60 | . 10 8 . 37 5 . Melee . | . . . . . . . Ram 30 | . . . . . . 30 Kick . | . . . . . . . Crush . | . . . . . . . Escape Stasis . | . . . . . . . Rewire . | . . . . . . . Trap . | . . . . . . . Miscellaneous . | . . . . . . . Route ------- -11/Scrapyard -10/Materials -9/Materials -9/Mines -8/Materials (discovered 3 exits: *Fac / Sto x2) -7/Factory -6/Factory History --------- Turn | Location | Event 14 | -11/Scrapyard | Discovered new exit (range 16) 43 | -11/Scrapyard | Entered Materials 304 | -10/Materials | Discovered new exit (range 10) 359 | -10/Materials | Build established: Hauler-Mutant 364 | -10/Materials | Entered another Materials area 364 | -9/Materials | Evolved 2 slots: Propulsion x1, Utility x1 727 | -9/Materials | Discovered new exit (range 14) 824 | -9/Materials | Entered Mines 872 | -9/Mines | Discovered new exit (range 3) 905 | -9/Mines | Entered Materials 905 | -8/Materials | Evolved 2 slots: Utility x2 1053 | -8/Materials | Lost 4 parts (3n1w) 1245 | -8/Materials | Identified exit to Storage 1299 | -8/Materials | Build established: Scavenger-Skirmisher 1377 | -8/Materials | Discovered new exit (range 9) 1447 | -8/Materials | Entered Factory 1447 | -7/Factory | Evolved 2 slots: Propulsion x1, Utility x1 1495 | -7/Factory | Fabricated Matter Neutralizer (x2) 1720 | -7/Factory | Discovered new exit (range 15) 1730 | -7/Factory | Entered another Factory area 1730 | -6/Factory | Evolved 2 slots: Power x1, Propulsion x1 1730 | -6/Factory | Released all parts (8) 1760 | -6/Factory | Lost 3 parts (3n) 1903 | -6/Factory | Central database locked down 1941 | -6/Factory | Released all parts (3) 1968 | -6/Factory | Core integrity fell below 50% 1976 | -6/Factory | Spotted B-75 Beast 1985 | -6/Factory | Core integrity fell below 20% 1995 | -6/Factory | Destroyed by S-27 Virus with Autogun Last Messages --------------- 01939_ K-01 Serf collects debris. 01940_ Acquired Imp. Ion Engine. 01941_ Released Com. Wheel. 01941_ Released Imp. Ion Engine. 01955_ Connecting with Terminal... >>Layout(Zone) Retrieving Zone 3H layout... Downloaded map data. 01960_ Slammed into S-27 Virus. 01968_ Terminal disabled. 01968_ Penetrated by Slug. 01970_ C3EW#8ILTNHUUYXR7N/CV8R62I 01983_ C-30 ARC bursts open, deploying its payload. 01983_ P-60 Hacker unfolds itself. 01990_ Slammed into T-07 Excavator. 01990_ Destabilizing: System corrupted (+2). 01991_ Acquired 9 matter. 01993_ Slammed into S-27 Virus. 01993_ S-27 Virus destroyed. 01994_ K-01 Serf collects debris. Map ----- +----------------------------------------------------+ | # "T #^ " # """""??# # | | # "" / T + """""??# # | | # "" #### # """""??# # | | ##### #??# # """""" # # | | #??# !#??# + # + | | #??#! #??# ##### # # # #######+# | | #??######??# #???# # # ! # ## | | #????????### ###?# # # # ## | | #????????# #?# # !###########+## | | ########## #?# ##########???# # | | / ! #?# # ???????#"""" # | | ####### ## #?# # ????????#"""" [ # | | #?????# ## #?# # ?????????"""" # | | #######/### ####/# ?????????"""" # | | # # # ###+###??????? # | | # + # # #??????# ! # | | ?# """ # #! # #??????# # | | ?# " " """ # # + T #??????# # | | ?# "G" """ # # # #??????################# | | ?# " # # # #??????????????????????? | | ?# # # ### ###??????????????????????? | | ####/### ## ######?#%#????????????????????????? | | / ### ## ##???###%###???? ???????????????? | | / #####s*=% #??"" ?#?????????????? | | / t s s # """ #?????????????? | | sss @/ #?????????????? | | g s p R k # """ #?????????????? | | " g ##### #??"" ?#?????????????? | | " ##???## ##???? ???????????????? | | " #?????# #???????????????????????? | | #?????t R #???????????????????????? | | "" #???? # #???????????????????????? | | "%" #???" #k #???????????????????????? | | "" #?? "?# #???????????????????????? | | ! ###########?" ??# #???????????????????????? | | ????????????"???# +???????????????????????? | | ? ! ????????????????# %#???????????????????????? | | ?????????????????????# #???????????????????????? | | ?????????????????????# #???????????????????????? | | ?????????????????????# ????????????????????????? | | ?????????????????????????????????????????????????? | | ?????????????????????????????????????????????????? | | ?????????????????????????????????????????????????? | | ?????????????????????????????????????????????????? | | ?????????????????????????????????????????????????? | | ?????????????????????????????????????????????????? | | ?????????????????????????????????????????????????? | | ?????????????????????????????????????????????????? | | ?????????????????????????????????????????????????? | | ?????????????????????????????????????????????????? | +----------------------------------------------------+ Best States ------------- Heat Dissipation 48 Energy Generation 14 Energy Capacity 265 Matter Stores 300 Matter Capacity 300 Sight Range 18 Robot Scan Range 10 Terrain Scan Range 16 Terrain Scan Density 60 Resistance: KI 20 Resistance: TH 20 Resistance: EX 20 Resistance: EM 20 Resistance: I 20 Resistance: S 20 Resistance: P 20 Evasion (%) 63 Target Analysis 5 Core Analysis 6 Offensive Hacking 20 Item Schematics ----------------- VTOL Module | -7/Factory | Scanalyzed Imp. Sensor Array | -7/Factory | Scanalyzed Ion Engine | -7/Factory | Scanalyzed Robot Schematics ------------------ None Fabricated ------------ Matter Neutralizer | x2 | -7/Factory | Preloaded Alien Tech Used ----------------- None Achievements -------------- Oops Challenges ------------ None Game ------ Seed ForceNeutronMagmablaster Manual? 0 Play Time 00:53:42 Cumulative 6.4 hours Start 2020.01.26 @ 23:12:56 End 2020.01.28 @ 21:22:26 Sessions 5 Manual Loads 0 Difficulty Adventurer Special Mode None Game No. 6 Rogue 3 Adventurer 3 Explorer 0 Win Type - Total 0 Types 0/0/0/0/0/0/0 Lore% 4 Gallery% 11 Achievement% 9 Wizard Run 0 Options --------- ASCII 1 Keyboard 1 Movement Mouse Keybinds 0 Fullscreen 1 Font 14/Dina Map View 76x50 Tactical HUD 1 Map Filters NONE Filters NONE Steam 1 RUN: 08b2693d-6749-4a36-b5ec-026aac8ed6bd